[Event "FIDE World Junior U20-ch Girls 2025"]
[Site "Petrovac"]
[Date "2025.02.26"]
[Round "2.40"]
[White "Djendjinovic, Ines"]
[Black "Romany, Joy"]
[Result "1/2-1/2"]
[Annotator "NA RC"]
[ECO "D02"]
[WhiteElo "1841"]
[BlackElo "2025"]
[PlyCount "125"]
[EventDate "2025.02.23"]
[EventType "swiss"]
[EventCountry "MNE"]
[SourceTitle "playchess.com"]
[Source "ChessBase"]
[SourceQuality "1"]
[TimeControl "40/5400+30:1800+30"]

1. d4 {[%emt 0:00:02]} Nf6 {[%emt 0:01:12]} 2. Bf4 {[%emt 0:00:17]} d5 {[%emt 0:00:56]} 3. Nf3 {[%emt 0:00:08]} c5 {[%emt 0:01:21]} 4. e3 {[%emt 0:00:10]} Nc6 {[%emt 0:00:36]} 5. c3 {[%emt 0:00:14]} Qb6 {[%emt 0:00:28]} 6. Qc1 {[%emt 0:06:31]} Bf5 {[%emt 0:01:27]} 7. dxc5 {[%emt 0:02:37]} Qxc5 {[%emt 0:00:45]} 8. Nbd2 {[%emt 0:00:09]} Nh5 {[%emt 0:08:11]} 9. Bg3 {[%emt 0:01:04]} Nxg3 {[%emt 0:00:48]} 10. hxg3 {[%emt 0:00:09]} e5 {[%emt 0:04:23]} 11. Nb3 {[%emt 0:00:55]} Qd6 {[%emt 0:01:41]} 12. Be2 {[%emt 0:01:45]} Be7 {[%emt 0:00:13]} 13. Qd2 {[%emt 0:01:12]} Rc8 {[%emt 0:01:24]} 14. Rd1 {[%emt 0:03:32]} Rd8 {[%emt 0:03:34]} 15. O-O {[%emt 0:09:24]} O-O {[%emt 0:00:11]} 16. Ne1 {[%emt 0:15:59]} Qh6 {[%emt 0:06:14]} 17. Nc2 {[%emt 0:06:11]} Rfe8 {[%emt 0:10:17]} 18. Bd3 {[%emt 0:18:19]} Bg4 {[%emt 0:01:42]} 19. Be2 {[%emt 0:00:39]} Be6 {[%emt 0:00:49]} 20. Qe1 {[%emt 0:04:39]} Rd7 {[%emt 0:14:41]} 21. c4 {[%emt 0:05:28]} Red8 {[%emt 0:18:34]} 22. cxd5 {[%emt 0:00:18]} Rxd5 {[%emt 0:03:09]} 23. Rxd5 {[%emt 0:00:10]} Bxd5 {[%emt 0:00:31]} 24. Qc3 {[%emt 0:08:03]} Qe6 {[%emt 0:04:44]} 25. Rd1 {[%emt 0:03:02]} Rc8 {[%emt 0:04:18]} 26. Qd3 {[%emt 0:01:44]} Bxb3 {[%emt 0:02:04]} 27. axb3 {[%emt 0:00:21]} Rd8 {[%emt 0:00:09]} 28. Qc4 {[%emt 0:01:05]} Rxd1+ {[%emt 0:00:51]} 29. Bxd1 {[%emt 0:00:05]} Qd6 {[%emt 0:00:54]} 30. Bf3 {[%emt 0:01:09]} Kf8 {[%emt 0:05:17]} 31. Qd5 {[%emt 0:04:30]} Qc7 {[%emt 0:01:13]} 32. Qc4 {[%emt 0:00:27]} Qd7 {[%emt 0:00:39]} 33. Qd5 {[%emt 0:01:26]} Ke8 {[%emt 0:00:19]} 34. Qxd7+ {[%emt 0:03:38]} Kxd7 {[%emt 0:00:01]} 35. Bd5 {[%emt 0:00:57]} f5 {[%emt 0:00:14]} 36. e4 {[%emt 0:00:10]} Kd6 {[%emt 0:00:19]} 37. f3 {[%emt 0:00:17]} Bg5 {[%emt 0:01:45]} 38. Bg8 {[%emt 0:01:20]} fxe4 {[%emt 0:00:18]} 39. Bxh7 {[%emt 0:00:52]} e3 {[%emt 0:01:16]} 40. Kf1 {[%emt 0:00:18]} Nd4 {[%emt 0:00:44]} 41. Nxd4 {[%emt 0:30:16]} exd4 {[%emt 0:30:01]} 42. Ke2 {[%emt 0:00:07]} Kc5 {[%emt 0:00:06]} 43. Bg8 {[%emt 0:00:38]} b5 {[%emt 0:00:50]} 44. g4 {[%emt 0:00:21]} Bf4 {[%emt 0:00:08]} 45. Kd3 {[%emt 0:00:38]} a5 {[%emt 0:00:09]} 46. Bf7 {[%emt 0:00:13]} Kd6 {[%emt 0:01:25]} 47. Be8 {[%emt 0:00:20]} Kc5 {[%emt 0:00:45]} 48. Bd7 {[%emt 0:00:24]} Kb4 {[%emt 0:00:31]} 49. Be6 {[%emt 0:00:16]} a4 {[%emt 0:00:00]} 50. bxa4 {[%emt 0:00:00]} bxa4 {[%emt 0:00:00]} 51. Bd5 {[%emt 0:00:00]} Kc5 {[%emt 0:00:00]} 52. Be6 {[%emt 0:00:00]} Bg3 {[%emt 0:00:00]} 53. Bf7 {[%emt 0:00:00]} g5 {[%emt 0:00:00]} 54. Ke2 {[%emt 0:00:00]} Bc7 {[%emt 0:00:00]} 55. Be8 {[%emt 0:00:00]} Kb4 {[%emt 0:00:00]} 56. Bf7 {[%emt 0:00:00]} Ba5 {[%emt 0:00:00]} 57. Be6 {[%emt 0:00:00]} Bb6 {[%emt 0:00:00]} 58. Bf7 {[%emt 0:00:00]} Bc5 {[%emt 0:00:00]} 59. Kd3 {[%emt 0:00:00]} Bb6 {[%emt 0:00:00]} 60. Be6 {[%emt 0:00:00]} Ka5 {[%emt 0:00:00]} 61. Bf7 {[%emt 0:00:00]} Bc5 {[%emt 0:00:00]} 62. Bc4 {[%emt 0:00:00]} Kb6 {[%emt 0:00:00]} 63. g3 {[%emt 0:00:00]} 1/2-1/2

[Event "FIDE World Junior U20-ch Girls 2025"]
[Site "Petrovac"]
[Date "2025.02.26"]
[Round "2.41"]
[White "Shohradova, Lala"]
[Black "Blauhut, Anna"]
[Result "1-0"]
[Annotator "NA"]
[ECO "D21"]
[WhiteElo "2025"]
[BlackElo "1837"]
[PlyCount "39"]
[EventDate "2025.02.23"]
[EventType "swiss"]
[EventCountry "MNE"]
[SourceTitle "playchess.com"]
[Source "ChessBase"]
[SourceQuality "1"]
[TimeControl "40/5400+30:1800+30"]

1. d4 {[%emt 0:00:03]} d5 {[%emt 0:00:14]} 2. c4 {[%emt 0:00:09]} dxc4 {[%emt 0:00:07]} 3. Nf3 {[%emt 0:00:12]} c6 {[%emt 0:00:14]} 4. e3 {[%emt 0:01:00]} Be6 {[%emt 0:00:14]} 5. a4 {[%emt 0:01:39]} Nf6 {[%emt 0:00:42]} 6. Na3 {[%emt 0:03:40]} Na6 {[%emt 0:04:49]} 7. Nxc4 {[%emt 0:00:48]} Bxc4 {[%emt 0:00:45]} 8. Bxc4 {[%emt 0:00:02]} e6 {[%emt 0:01:11]} 9. O-O {[%emt 0:07:34]} Nc7 {[%emt 0:02:58]} 10. Bd3 {[%emt 0:04:56]} Be7 {[%emt 0:05:11]} 11. e4 {[%emt 0:03:34]} c5 {[%emt 0:05:00]} 12. dxc5 {[%emt 0:04:10]} Bxc5 {[%emt 0:00:59]} 13. Qc2 {[%emt 0:01:51]} Nd7 {[%emt 0:02:18]} 14. Bf4 {[%emt 0:04:15]} Rc8 {[%emt 0:04:05]} 15. b4 {[%emt 0:02:39]} Bxb4 {[%emt 0:03:57]} 16. Qb2 {[%emt 0:04:47]} Bc5 {[%emt 0:12:09]} 17. Qxg7 {[%emt 0:03:43]} Qf6 {[%emt 0:02:34]} 18. Qg3 {[%emt 0:00:58]} Qd8 {[%emt 0:06:50]} 19. Rad1 {[%emt 0:03:21]} f6 {[%emt 0:22:39]} 20. Be2 {[%emt 0:14:54]} 1-0

[Event "FIDE World Junior U20-ch Girls 2025"]
[Site "Petrovac"]
[Date "2025.02.26"]
[Round "2.42"]
[White "Djukic, Katarina"]
[Black "Blokhin, Sofia"]
[Result "0-1"]
[Annotator "NA"]
[ECO "B01"]
[WhiteElo "1786"]
[BlackElo "2020"]
[PlyCount "70"]
[EventDate "2025.02.23"]
[EventType "swiss"]
[EventCountry "MNE"]
[SourceTitle "playchess.com"]
[Source "ChessBase"]
[SourceQuality "1"]
[TimeControl "40/5400+30:1800+30"]

1. e4 {[%emt 0:00:02]} d5 {[%emt 0:00:04]} 2. exd5 {[%emt 0:00:08]} Qxd5 {[%emt 0:00:03]} 3. Nc3 {[%emt 0:00:09]} Qd6 {[%emt 0:00:06]} 4. d4 {[%emt 0:00:08]} Nf6 {[%emt 0:00:12]} 5. Nf3 {[%emt 0:05:15]} a6 {[%emt 0:00:28]} 6. Bd3 {[%emt 0:12:18]} g6 {[%emt 0:01:21]} 7. O-O {[%emt 0:00:53]} Bg7 {[%emt 0:01:35]} 8. h3 {[%emt 0:03:42]} O-O {[%emt 0:01:08]} 9. Ne2 {[%emt 0:02:00]} Nc6 {[%emt 0:06:29]} 10. Bf4 {[%emt 0:03:22]} Qd8 {[%emt 0:00:39]} 11. c4 {[%emt 0:01:42]} e6 {[%emt 0:02:49]} 12. Rc1 {[%emt 0:04:00]} Nh5 {[%emt 0:08:40]} 13. Be3 {[%emt 0:03:20]} f5 {[%emt 0:08:48]} 14. Qd2 {[%emt 0:05:52]} e5 {[%emt 0:05:22]} 15. dxe5 {[%emt 0:02:21]} Nxe5 {[%emt 0:00:33]} 16. Nxe5 {[%emt 0:00:34]} Bxe5 {[%emt 0:00:06]} 17. f4 {[%emt 0:10:18]} Bg7 {[%emt 0:02:08]} 18. Rfd1 {[%emt 0:06:21]} Be6 {[%emt 0:02:19]} 19. Nc3 {[%emt 0:02:06]} c6 {[%emt 0:04:18]} 20. Na4 {[%emt 0:05:05]} Qc7 {[%emt 0:02:41]} 21. Qf2 {[%emt 0:06:18]} Rfe8 {[%emt 0:04:31]} 22. b3 {[%emt 0:06:10]} Bf7 {[%emt 0:02:32]} 23. g4 {[%emt 0:05:18]} fxg4 {[%emt 0:00:30]} 24. hxg4 {[%emt 0:00:09]} Rxe3 {[%emt 0:08:00]} 25. Qxe3 {[%emt 0:00:57]} Nxf4 {[%emt 0:01:16]} 26. Bf1 {[%emt 0:03:38]} Re8 {[%emt 0:01:24]} 27. Qf3 {[%emt 0:01:40]} c5 {[%emt 0:01:11]} 28. Re1 {[%emt 0:01:56]} Bd4+ {[%emt 0:01:01]} 29. Kh1 {[%emt 0:00:20]} Rf8 {[%emt 0:05:09]} 30. Qe4 {[%emt 0:06:04]} Be8 {[%emt 0:06:10]} 31. Qxe8 {[%emt 0:03:07]} Rxe8 {[%emt 0:00:12]} 32. Rxe8+ {[%emt 0:00:04]} Kf7 {[%emt 0:00:23]} 33. Re4 {[%emt 0:01:06]} Qc6 {[%emt 0:00:19]} 34. Rce1 {[%emt 0:00:24]} g5 {[%emt 0:00:44]} 35. Kh2 {[%emt 0:01:05]} Qh6+ {[%emt 0:00:08]} 0-1

[Event "FIDE World Junior U20-ch Girls 2025"]
[Site "Petrovac"]
[Date "2025.02.26"]
[Round "2.43"]
[White "Lindstad, Livia"]
[Black "Kaloki, Zuri"]
[Result "1-0"]
[Annotator "NA"]
[ECO "C54"]
[WhiteElo "2017"]
[BlackElo "1784"]
[PlyCount "107"]
[EventDate "2025.02.23"]
[EventType "swiss"]
[EventCountry "MNE"]
[SourceTitle "playchess.com"]
[Source "ChessBase"]
[SourceQuality "1"]
[TimeControl "40/5400+30:1800+30"]

1. e4 {[%emt 0:00:05]} e5 {[%emt 0:00:04]} 2. Nf3 {[%emt 0:00:32]} Nc6 {[%emt 0:00:06]} 3. Bc4 {[%emt 0:00:36]} Bc5 {[%emt 0:00:06]} 4. c3 {[%emt 0:00:18]} Nf6 {[%emt 0:00:07]} 5. d3 {[%emt 0:00:50]} a6 {[%emt 0:00:12]} 6. Bb3 {[%emt 0:00:57]} d6 {[%emt 0:00:08]} 7. O-O {[%emt 0:02:55]} O-O {[%emt 0:06:03]} 8. Re1 {[%emt 0:05:58]} Be6 {[%emt 0:01:50]} 9. Bc2 {[%emt 0:04:18]} Ng4 {[%emt 0:03:34]} 10. d4 {[%emt 0:04:39]} exd4 {[%emt 0:01:04]} 11. cxd4 {[%emt 0:01:54]} Nxd4 {[%emt 0:15:19]} 12. Nxd4 {[%emt 0:12:25]} Qh4 {[%emt 0:00:07]} 13. Be3 {[%emt 0:00:34]} Qxh2+ {[%emt 0:12:27]} 14. Kf1 {[%emt 0:00:58]} Nxe3+ {[%emt 0:01:49]} 15. fxe3 {[%emt 0:05:50]} Bxd4 {[%emt 0:12:18]} 16. exd4 {[%emt 0:06:36]} f5 {[%emt 0:01:13]} 17. e5 {[%emt 0:00:44]} Bd5 {[%emt 0:01:48]} 18. Qd2 {[%emt 0:15:34]} f4 {[%emt 0:13:46]} 19. Ke2 {[%emt 0:12:24]} f3+ {[%emt 0:02:12]} 20. Kd1 {[%emt 0:00:29]} fxg2 {[%emt 0:00:55]} 21. Qd3 {[%emt 0:05:15]} Rf3 {[%emt 0:05:29]} 22. Qxh7+ {[%emt 0:02:58]} Qxh7 {[%emt 0:00:03]} 23. Bxh7+ {[%emt 0:00:09]} Kxh7 {[%emt 0:00:13]} 24. Nd2 {[%emt 0:00:08]} Rf2 {[%emt 0:00:51]} 25. Kc2 {[%emt 0:01:23]} Bc4 {[%emt 0:03:57]} 26. Rg1 {[%emt 0:00:10]} Raf8 {[%emt 0:02:05]} 27. Kc3 {[%emt 0:01:16]} Bb5 {[%emt 0:05:40]} 28. a4 {[%emt 0:01:50]} Bf1 {[%emt 0:02:06]} 29. e6 {[%emt 0:03:04]} d5 {[%emt 0:03:19]} 30. Re1 {[%emt 0:01:44]} Re8 {[%emt 0:01:45]} 31. Re3 {[%emt 0:01:31]} Kg6 {[%emt 0:03:57]} 32. Nxf1 {[%emt 0:01:10]} Rxf1 {[%emt 0:00:06]} 33. Rxg2+ {[%emt 0:00:09]} Kf6 {[%emt 0:00:07]} 34. Reg3 {[%emt 0:02:46]} Re1 {[%emt 0:02:07]} 35. Rxg7 {[%emt 0:00:43]} R8xe6 {[%emt 0:00:12]} 36. Rxc7 {[%emt 0:04:05]} Rc1+ {[%emt 0:00:22]} 37. Rc2 {[%emt 0:00:04]} Rxc2+ {[%emt 0:00:07]} 38. Kxc2 {[%emt 0:00:02]} Rc6+ {[%emt 0:00:40]} 39. Rxc6+ {[%emt 0:00:07]} bxc6 {[%emt 0:00:04]} 40. Kc3 {[%emt 0:00:43]} Kf5 {[%emt 0:00:16]} 41. Kb4 {[%emt 0:31:32]} Ke4 {[%emt 0:30:15]} 42. Kc5 {[%emt 0:01:31]} a5 {[%emt 0:00:28]} 43. b4 {[%emt 0:00:00]} axb4 {[%emt 0:00:00]} 44. Kxb4 {[%emt 0:00:00]} Kxd4 {[%emt 0:00:00]} 45. a5 {[%emt 0:00:00]} c5+ {[%emt 0:00:00]} 46. Ka3 {[%emt 0:00:00]} c4 {[%emt 0:00:00]} 47. a6 {[%emt 0:00:00]} Kc3 {[%emt 0:00:00]} 48. a7 {[%emt 0:00:00]} d4 {[%emt 0:00:00]} 49. a8=Q {[%emt 0:00:00]} d3 {[%emt 0:00:00]} 50. Qh8+ {[%emt 0:00:00]} Kc2 {[%emt 0:00:00]} 51. Qb2+ {[%emt 0:00:00]} Kd1 {[%emt 0:00:00]} 52. Kb4 {[%emt 0:00:00]} Ke1 {[%emt 0:00:00]} 53. Kc3 {[%emt 0:00:00]} Kf1 {[%emt 0:00:00]} 54. Kxc4 {[%emt 0:00:00]} 1-0

[Event "FIDE World Junior U20-ch Girls 2025"]
[Site "Petrovac"]
[Date "2025.02.26"]
[Round "2.44"]
[White "Ajradinoska, Indzi"]
[Black "Li, Anna Sofie"]
[Result "1-0"]
[Annotator "NA"]
[ECO "D04"]
[WhiteElo "1761"]
[BlackElo "2016"]
[PlyCount "111"]
[EventDate "2025.02.23"]
[EventType "swiss"]
[EventCountry "MNE"]
[SourceTitle "playchess.com"]
[Source "ChessBase"]
[SourceQuality "1"]
[TimeControl "40/5400+30:1800+30"]

1. d4 {[%emt 0:00:03]} d5 {[%emt 0:00:08]} 2. Nf3 {[%emt 0:00:06]} Nf6 {[%emt 0:00:07]} 3. e3 {[%emt 0:00:16]} c5 {[%emt 0:00:12]} 4. Bd3 {[%emt 0:00:30]} Nc6 {[%emt 0:00:55]} 5. b3 {[%emt 0:00:31]} cxd4 {[%emt 0:00:42]} 6. exd4 {[%emt 0:00:35]} Bg4 {[%emt 0:00:45]} 7. Bb2 {[%emt 0:01:49]} e6 {[%emt 0:00:54]} 8. O-O {[%emt 0:02:36]} Bd6 {[%emt 0:01:15]} 9. Nbd2 {[%emt 0:03:56]} O-O {[%emt 0:03:33]} 10. Re1 {[%emt 0:02:13]} Nb4 {[%emt 0:05:11]} 11. Nf1 {[%emt 0:06:40]} Rc8 {[%emt 0:08:06]} 12. c3 {[%emt 0:07:32]} Nxd3 {[%emt 0:00:14]} 13. Qxd3 {[%emt 0:00:09]} Ne4 {[%emt 0:07:44]} 14. Ng3 {[%emt 0:08:43]} f5 {[%emt 0:12:55]} 15. c4 {[%emt 0:08:07]} Rf6 {[%emt 0:08:36]} 16. Ne5 {[%emt 0:06:37]} dxc4 {[%emt 0:09:00]} 17. Nxc4 {[%emt 0:02:53]} Rh6 {[%emt 0:10:23]} 18. Bc1 {[%emt 0:07:23]} Bxg3 {[%emt 0:04:09]} 19. fxg3 {[%emt 0:02:11]} g5 {[%emt 0:08:04]} 20. Bb2 {[%emt 0:06:02]} Qe8 {[%emt 0:06:27]} 21. Ne3 {[%emt 0:08:11]} Qh5 {[%emt 0:02:41]} 22. Nf1 {[%emt 0:03:05]} Rf8 {[%emt 0:02:48]} 23. d5 {[%emt 0:00:38]} e5 {[%emt 0:01:39]} 24. Bxe5 {[%emt 0:01:15]} f4 {[%emt 0:02:22]} 25. d6 {[%emt 0:09:45]} f3 {[%emt 0:02:23]} 26. Qc4+ {[%emt 0:00:38]} Be6 {[%emt 0:00:24]} 27. Qc7 {[%emt 0:03:06]} f2+ {[%emt 0:01:38]} 28. Kh1 {[%emt 0:00:06]} Nxg3+ {[%emt 0:00:21]} 29. Bxg3 {[%emt 0:00:14]} fxe1=Q {[%emt 0:00:25]} 30. Rxe1 {[%emt 0:00:27]} Qe2 {[%emt 0:00:42]} 31. Qc1 {[%emt 0:01:20]} Rhf6 {[%emt 0:00:41]} 32. Qxg5+ {[%emt 0:01:10]} Rg6 {[%emt 0:00:23]} 33. Qc1 {[%emt 0:00:21]} Qb5 {[%emt 0:00:34]} 34. Nd2 {[%emt 0:01:41]} Rgf6 {[%emt 0:00:26]} 35. Nf3 {[%emt 0:00:43]} Bd7 {[%emt 0:00:30]} 36. Re5 {[%emt 0:02:37]} Qd3 {[%emt 0:00:33]} 37. Re3 {[%emt 0:00:40]} Rc8 {[%emt 0:00:32]} 38. Qxc8+ {[%emt 0:00:15]} Bxc8 {[%emt 0:00:06]} 39. Rxd3 {[%emt 0:00:09]} Bd7 {[%emt 0:00:06]} 40. Kg1 {[%emt 0:01:09]} Kf8 {[%emt 0:00:11]} 41. Bh4 {[%emt 0:32:29]} Rf5 {[%emt 0:30:27]} 42. Kf2 {[%emt 0:01:13]} Rc5 {[%emt 0:00:23]} 43. Rd2 {[%emt 0:00:19]} a5 {[%emt 0:00:33]} 44. Ke3 {[%emt 0:01:03]} b6 {[%emt 0:00:29]} 45. h3 {[%emt 0:01:03]} h5 {[%emt 0:00:27]} 46. Bd8 {[%emt 0:00:00]} Rb5 {[%emt 0:00:00]} 47. Rd4 {[%emt 0:00:00]} Ke8 {[%emt 0:00:00]} 48. Bh4 {[%emt 0:00:00]} Rc5 {[%emt 0:00:00]} 49. Nd2 {[%emt 0:00:00]} b5 {[%emt 0:00:00]} 50. Ne4 {[%emt 0:00:00]} Re5 {[%emt 0:00:00]} 51. Kd3 {[%emt 0:00:00]} Kf7 {[%emt 0:00:00]} 52. Ng5+ {[%emt 0:00:00]} Kg6 {[%emt 0:00:00]} 53. Nf3 {[%emt 0:00:00]} Rc5 {[%emt 0:00:00]} 54. g4 {[%emt 0:00:00]} hxg4 {[%emt 0:00:00]} 55. hxg4 {[%emt 0:00:00]} a4 {[%emt 0:00:00]} 56. b4 {[%emt 0:00:00]} 1-0

[Event "FIDE World Junior U20-ch Girls 2025"]
[Site "Petrovac"]
[Date "2025.02.26"]
[Round "2.45"]
[White "Zeliantsova, Kseniya"]
[Black "Saraci, Rinesa"]
[Result "1-0"]
[Annotator "ChessBase"]
[ECO "C90"]
[WhiteElo "1999"]
[BlackElo "1751"]
[PlyCount "145"]
[EventDate "2025.02.23"]
[EventType "swiss"]
[EventCountry "MNE"]
[SourceTitle "playchess.com"]
[Source "ChessBase"]
[SourceQuality "1"]
[TimeControl "40/5400+30:1800+30"]

1. e4 {[%emt 0:00:01]} e5 {[%emt 0:00:11]} 2. Nf3 {[%emt 0:00:06]} Nc6 {[%emt 0:00:08]} 3. Bb5 {[%emt 0:00:06]} a6 {[%emt 0:00:14]} 4. Ba4 {[%emt 0:00:19]} Nf6 {[%emt 0:00:19]} 5. d3 {[%emt 0:00:06]} b5 {[%emt 0:00:31]} 6. Bb3 {[%emt 0:00:07]} Be7 {[%emt 0:00:38]} 7. O-O {[%emt 0:00:43]} O-O {[%emt 0:01:57]} 8. Re1 {[%emt 0:00:31]} d6 {[%emt 0:00:51]} 9. c3 {[%emt 0:00:11]} Bb7 {[%emt 0:01:27]} 10. Nbd2 {[%emt 0:01:16]} Qd7 {[%emt 0:07:23]} 11. Nf1 {[%emt 0:02:30]} Na5 {[%emt 0:06:38]} 12. Bc2 {[%emt 0:00:14]} Rfe8 {[%emt 0:02:39]} 13. Ng3 {[%emt 0:05:27]} Bf8 {[%emt 0:06:14]} 14. Bg5 {[%emt 0:02:54]} Be7 {[%emt 0:03:15]} 15. Nf5 {[%emt 0:12:44]} h6 {[%emt 0:11:18]} 16. Bh4 {[%emt 0:04:27]} c5 {[%emt 0:09:04]} 17. h3 {[%emt 0:10:09]} Bd8 {[%emt 0:12:54]} 18. Nh2 {[%emt 0:10:37]} Kh8 {[%emt 0:08:33]} 19. Qd2 {[%emt 0:14:33]} Nh7 {[%emt 0:03:05]} 20. Re3 {[%emt 0:04:41]} d5 {[%emt 0:03:20]} 21. Qe2 {[%emt 0:04:59]} dxe4 {[%emt 0:02:22]} 22. dxe4 {[%emt 0:00:17]} Bxh4 {[%emt 0:00:47]} 23. Nxh4 {[%emt 0:00:26]} Nc4 {[%emt 0:04:49]} 24. Rd3 {[%emt 0:07:42]} Qc6 {[%emt 0:00:55]} 25. Rg3 {[%emt 0:05:30]} g6 {[%emt 0:01:30]} 26. b3 {[%emt 0:02:26]} Nd6 {[%emt 0:00:20]} 27. Re1 {[%emt 0:03:56]} Nf6 {[%emt 0:01:42]} 28. Qe3 {[%emt 0:02:00]} g5 {[%emt 0:00:40]} 29. Qf3 {[%emt 0:03:32]} Re6 {[%emt 0:03:36]} 30. Nf5 {[%emt 0:00:44]} Nxf5 {[%emt 0:03:06]} 31. Qxf5 {[%emt 0:00:32]} Rf8 {[%emt 0:00:47]} 32. Ng4 {[%emt 0:01:03]} Nxg4 {[%emt 0:01:01]} 33. Qxg4 {[%emt 0:00:35]} Rf6 {[%emt 0:01:02]} 34. Qh5 {[%emt 0:00:33]} Rg6 {[%emt 0:00:49]} 35. h4 {[%emt 0:00:28]} Qf6 {[%emt 0:02:12]} 36. Ree3 {[%emt 0:00:45]} Qf4 {[%emt 0:01:22]} 37. hxg5 {[%emt 0:00:47]} Kh7 {[%emt 0:00:40]} 38. gxh6 {[%emt 0:00:52]} Rxh6 {[%emt 0:00:16]} 39. Qd1 {[%emt 0:00:16]} Rg8 {[%emt 0:00:37]} 40. Ref3 {[%emt 0:00:45]} Qh4 {[%emt 0:00:45]} 41. Rh3 {[%emt 0:06:01]} Qe7 {[%emt 0:05:07]} 42. Rxh6+ {[%emt 0:02:44]} Kxh6 {[%emt 0:00:08]} 43. Qd2+ {[%emt 0:00:46]} Rg5 {[%emt 0:04:23]} 44. Rd3 {[%emt 0:01:48]} Bc8 {[%emt 0:02:30]} 45. Rd8 {[%emt 0:01:51]} Be6 {[%emt 0:01:57]} 46. Qd6 {[%emt 0:02:17]} Qxd6 {[%emt 0:08:06]} 47. Rxd6 {[%emt 0:00:08]} Kg7 {[%emt 0:01:38]} 48. Rxa6 {[%emt 0:01:44]} Bh3 {[%emt 0:00:36]} 49. g3 {[%emt 0:00:14]} Bg4 {[%emt 0:00:25]} 50. Kg2 {[%emt 0:00:40]} Rg6 {[%emt 0:02:15]} 51. Ra5 {[%emt 0:02:23]} Be2 {[%emt 0:01:21]} 52. a4 {[%emt 0:05:14]} bxa4 {[%emt 0:02:18]} 53. Rxa4 {[%emt 0:01:36]} Rf6 {[%emt 0:00:30]} 54. Ra5 {[%emt 0:01:37]} Bf3+ {[%emt 0:00:15]} 55. Kf1 {[%emt 0:00:04]} Rd6 {[%emt 0:00:41]} 56. Ke1 {[%emt 0:00:11]} Rc6 {[%emt 0:00:48]} 57. Kd2 {[%emt 0:00:27]} f6 {[%emt 0:00:22]} 58. Bd3 {[%emt 0:01:02]} Bg2 {[%emt 0:01:01]} 59. Ke3 {[%emt 0:01:05]} Kg6 {[%emt 0:00:33]} 60. Bc4 {[%emt 0:03:03]} Kg5 {[%emt 0:00:39]} 61. Bd5 {[%emt 0:01:01]} Rc7 {[%emt 0:00:26]} 62. Ra6 {[%emt 0:00:43]} Bf1 {[%emt 0:01:25]} 63. Rc6 {[%emt 0:00:56]} Ra7 {[%emt 0:00:32]} 64. Rxc5 {[%emt 0:00:10]} Ra2 {[%emt 0:00:20]} 65. Bc4 {[%emt 0:00:37]} Bg2 {[%emt 0:00:44]} 66. b4 {[%emt 0:00:29]} Rc2 {[%emt 0:01:03]} 67. Bd3 {[%emt 0:00:09]} Rb2 {[%emt 0:00:23]} 68. b5 {[%emt 0:00:21]} Rb3 {[%emt 0:00:20]} 69. Rc6 {[%emt 0:01:14]} Bh3 {[%emt 0:01:01]} 70. b6 {[%emt 0:01:06]} Bd7 {[%emt 0:00:38]} 71. Rc7 {[%emt 0:00:46]} Be6 {[%emt 0:01:12]} 72. b7 {[%emt 0:00:23]} Kg6 {[%emt 0:01:20]} 73. Ba6 {[%emt 0:00:20]} 1-0

[Event "FIDE World Junior U20-ch Girls 2025"]
[Site "Petrovac"]
[Date "2025.02.26"]
[Round "2.46"]
[White "Trifoi, Mihaela-Ioana"]
[Black "Balent, Sara"]
[Result "1-0"]
[Annotator "NA"]
[ECO "C02"]
[WhiteElo "1990"]
[BlackElo "1653"]
[PlyCount "61"]
[EventDate "2025.02.23"]
[EventType "swiss"]
[EventCountry "MNE"]
[SourceTitle "playchess.com"]
[Source "ChessBase"]
[SourceQuality "1"]
[TimeControl "40/5400+30:1800+30"]

1. e4 {[%emt 0:00:12]} e6 {[%emt 0:00:07]} 2. d4 {[%emt 0:00:11]} d5 {[%emt 0:00:07]} 3. e5 {[%emt 0:00:05]} c5 {[%emt 0:00:05]} 4. c3 {[%emt 0:00:05]} Nc6 {[%emt 0:00:09]} 5. Nf3 {[%emt 0:00:12]} Bd7 {[%emt 0:00:11]} 6. Be2 {[%emt 0:00:52]} Nge7 {[%emt 0:01:02]} 7. O-O {[%emt 0:04:31]} cxd4 {[%emt 0:01:54]} 8. cxd4 {[%emt 0:00:10]} Nf5 {[%emt 0:00:32]} 9. Nc3 {[%emt 0:01:23]} Be7 {[%emt 0:02:20]} 10. a3 {[%emt 0:06:04]} O-O {[%emt 0:01:15]} 11. b4 {[%emt 0:00:53]} Rc8 {[%emt 0:02:19]} 12. Bb2 {[%emt 0:03:51]} f6 {[%emt 0:02:07]} 13. Re1 {[%emt 0:01:42]} fxe5 {[%emt 0:08:20]} 14. dxe5 {[%emt 0:00:09]} Nh4 {[%emt 0:06:20]} 15. Qd3 {[%emt 0:10:04]} Nxf3+ {[%emt 0:08:55]} 16. Bxf3 {[%emt 0:00:07]} Rf5 {[%emt 0:13:52]} 17. Nxd5 {[%emt 0:18:16]} exd5 {[%emt 0:05:58]} 18. e6 {[%emt 0:09:12]} Rg5 {[%emt 0:07:41]} 19. exd7 {[%emt 0:01:33]} Qxd7 {[%emt 0:00:14]} 20. h4 {[%emt 0:00:42]} Rg6 {[%emt 0:01:25]} 21. Qxd5+ {[%emt 0:00:10]} Qxd5 {[%emt 0:00:42]} 22. Bxd5+ {[%emt 0:00:06]} Kf8 {[%emt 0:00:13]} 23. h5 {[%emt 0:01:44]} Rg5 {[%emt 0:02:48]} 24. Bf3 {[%emt 0:00:08]} Bd6 {[%emt 0:06:46]} 25. Rac1 {[%emt 0:02:06]} Rc7 {[%emt 0:03:25]} 26. Rcd1 {[%emt 0:01:54]} Be7 {[%emt 0:09:13]} 27. Bc1 {[%emt 0:02:25]} Rf5 {[%emt 0:00:33]} 28. Bg4 {[%emt 0:01:07]} Rf7 {[%emt 0:05:01]} 29. g3 {[%emt 0:00:36]} Bf6 {[%emt 0:00:36]} 30. Bf4 {[%emt 0:00:18]} Bc3 {[%emt 0:06:51]} 31. Bd6+ {[%emt 0:00:54]} 1-0